[Event "*** SCC Grand Prix: Titled Tuesday Blitz"]
[Site "Chess.com"]
[Date "2020.06.23"]
[Round "4"]
[White "Harsha_Bharathakoti"]
[Black "LiemLe"]
[Result "1-0"]
[WhiteElo "2823"]
[BlackElo "2995"]
[TimeControl "180+1"]
[EndTime "10:41:06 PDT"]
[Termination "Harsha_Bharathakoti won by checkmate"]

1. d4 {[%clk 0:03:00.9]} 1... Nf6 {[%clk 0:02:59.2]} 2. c4 {[%clk 0:03:00.7]}
2... e6 {[%clk 0:02:59.6]} 3. Nf3 {[%clk 0:03:00.7]} 3... d5 {[%clk 0:02:59.6]}
4. Nc3 {[%clk 0:02:59.9]} 4... Bb4 {[%clk 0:02:58.9]} 5. cxd5 {[%clk 0:02:57.5]}
5... exd5 {[%clk 0:02:59.8]} 6. Bf4 {[%clk 0:02:58]} 6... O-O {[%clk 0:02:52.8]}
7. Rc1 {[%clk 0:02:53.3]} 7... c6 {[%clk 0:02:48.6]} 8. e3 {[%clk 0:02:51.1]}
8... Bf5 {[%clk 0:02:48.5]} 9. Bd3 {[%clk 0:02:45.9]} 9... Bxd3 {[%clk 0:02:48]}
10. Qxd3 {[%clk 0:02:46.8]} 10... Bd6 {[%clk 0:02:41.1]} 11. Bxd6 {[%clk
0:02:27.1]} 11... Qxd6 {[%clk 0:02:42]} 12. O-O {[%clk 0:02:27.7]} 12... Nbd7
{[%clk 0:02:39.7]} 13. h3 {[%clk 0:01:56.4]} 13... Nb6 {[%clk 0:02:29.8]} 14.
Ne5 {[%clk 0:01:52.5]} 14... Nfd7 {[%clk 0:02:28]} 15. Nxd7 {[%clk 0:01:42.7]}
15... Qxd7 {[%clk 0:02:28.9]} 16. Ne2 {[%clk 0:01:37.7]} 16... Rfe8 {[%clk
0:02:27.6]} 17. Nf4 {[%clk 0:01:37.7]} 17... Nc4 {[%clk 0:02:15.7]} 18. b3
{[%clk 0:01:30.2]} 18... Nd6 {[%clk 0:02:15.3]} 19. Qd1 {[%clk 0:01:07.3]} 19...
Qf5 {[%clk 0:02:09.1]} 20. Qg4 {[%clk 0:01:04.8]} 20... a5 {[%clk 0:01:46]} 21.
Qxf5 {[%clk 0:01:04.1]} 21... Nxf5 {[%clk 0:01:46.9]} 22. Nd3 {[%clk 0:00:59.4]}
22... Kf8 {[%clk 0:01:42.6]} 23. g4 {[%clk 0:00:54]} 23... Nd6 {[%clk
0:01:41.8]} 24. a4 {[%clk 0:00:50.6]} 24... g6 {[%clk 0:01:25.7]} 25. Rfe1
{[%clk 0:00:49.9]} 25... Re7 {[%clk 0:01:17.3]} 26. f3 {[%clk 0:00:50.1]} 26...
f6 {[%clk 0:01:13.6]} 27. Kf2 {[%clk 0:00:50]} 27... Kf7 {[%clk 0:01:13.8]} 28.
Nf4 {[%clk 0:00:40.8]} 28... g5 {[%clk 0:01:08.4]} 29. Nd3 {[%clk 0:00:38.1]}
29... h5 {[%clk 0:01:08.2]} 30. Nc5 {[%clk 0:00:23.2]} 30... Rh8 {[%clk
0:01:05.2]} 31. Kg2 {[%clk 0:00:21.7]} 31... Rhe8 {[%clk 0:01:03.7]} 32. Kf2
{[%clk 0:00:21.4]} 32... Kg6 {[%clk 0:01:03.9]} 33. Re2 {[%clk 0:00:20.8]} 33...
Rh8 {[%clk 0:01:03]} 34. Rg1 {[%clk 0:00:15.7]} 34... hxg4 {[%clk 0:00:56.9]}
35. hxg4 {[%clk 0:00:16.6]} 35... Reh7 {[%clk 0:00:33.4]} 36. Ke1 {[%clk
0:00:13.4]} 36... Rh3 {[%clk 0:00:33.2]} 37. Rf2 {[%clk 0:00:13.1]} 37... Kf7
{[%clk 0:00:24]} 38. Ke2 {[%clk 0:00:12.1]} 38... Re8 {[%clk 0:00:22.1]} 39. Kd2
{[%clk 0:00:10]} 39... Ke7 {[%clk 0:00:20.1]} 40. Nd3 {[%clk 0:00:09.7]} 40...
Reh8 {[%clk 0:00:19.7]} 41. Ke2 {[%clk 0:00:09.1]} 41... b6 {[%clk 0:00:19.5]}
42. Rc1 {[%clk 0:00:08.5]} 42... Kd7 {[%clk 0:00:20]} 43. Rg1 {[%clk 0:00:06.7]}
43... Ne8 {[%clk 0:00:18]} 44. Kd2 {[%clk 0:00:06.1]} 44... Nc7 {[%clk 0:00:18]}
45. Rb1 {[%clk 0:00:05.3]} 45... Ne6 {[%clk 0:00:16.3]} 46. Ke2 {[%clk
0:00:04.3]} 46... c5 {[%clk 0:00:15.3]} 47. dxc5 {[%clk 0:00:03.4]} 47... bxc5
{[%clk 0:00:16.2]} 48. Rd1 {[%clk 0:00:03.7]} 48... Kc6 {[%clk 0:00:16.6]} 49.
Rc1 {[%clk 0:00:03.6]} 49... Rb8 {[%clk 0:00:16.5]} 50. Rc3 {[%clk 0:00:03.3]}
50... Kd6 {[%clk 0:00:16.9]} 51. Nc1 {[%clk 0:00:01.5]} 51... d4 {[%clk
0:00:16.1]} 52. Rd3 {[%clk 0:00:02]} 52... Rh1 {[%clk 0:00:15.4]} 53. Rf1 {[%clk
0:00:01.7]} 53... Rh2+ {[%clk 0:00:14.3]} 54. Rf2 {[%clk 0:00:02.2]} 54... Rh1
{[%clk 0:00:14.7]} 55. Rf1 {[%clk 0:00:02.7]} 55... Rxf1 {[%clk 0:00:14.2]} 56.
Kxf1 {[%clk 0:00:03.1]} 56... Ke5 {[%clk 0:00:14.7]} 57. Ne2 {[%clk 0:00:03.2]}
57... Rb4 {[%clk 0:00:13.2]} 58. Kf2 {[%clk 0:00:03.4]} 58... Kd6 {[%clk
0:00:09.5]} 59. Ng3 {[%clk 0:00:02.6]} 59... Ke5 {[%clk 0:00:08.7]} 60. Ne4
{[%clk 0:00:02.7]} 60... c4 {[%clk 0:00:09.1]} 61. exd4+ {[%clk 0:00:02.6]}
61... Nxd4 {[%clk 0:00:08.8]} 62. bxc4 {[%clk 0:00:03.5]} 62... Rxc4 {[%clk
0:00:09.5]} 63. Re3 {[%clk 0:00:02.7]} 63... Kf4 {[%clk 0:00:06.6]} 64. Nd2
{[%clk 0:00:03.3]} 64... Nc2 {[%clk 0:00:01.9]} 65. Nxc4 {[%clk 0:00:03.5]}
65... Nxe3 {[%clk 0:00:02.4]} 66. Nxe3 {[%clk 0:00:04.4]} 66... Ke5 {[%clk
0:00:03.3]} 67. Nc4+ {[%clk 0:00:04.8]} 67... Kd4 {[%clk 0:00:04.2]} 68. Nxa5
{[%clk 0:00:05.7]} 68... Kc5 {[%clk 0:00:04.8]} 69. Nb3+ {[%clk 0:00:06.1]}
69... Kb4 {[%clk 0:00:05.7]} 70. a5 {[%clk 0:00:06.5]} 70... Kb5 {[%clk
0:00:06.2]} 71. Ke3 {[%clk 0:00:07.1]} 71... f5 {[%clk 0:00:06.7]} 72. gxf5
{[%clk 0:00:07.7]} 72... Ka6 {[%clk 0:00:06.3]} 73. f6 {[%clk 0:00:08.2]} 73...
Kb5 {[%clk 0:00:07.2]} 74. f7 {[%clk 0:00:08.9]} 74... g4 {[%clk 0:00:07.9]} 75.
f8=Q {[%clk 0:00:08.7]} 75... gxf3 {[%clk 0:00:08.8]} 76. Qc5+ {[%clk
0:00:09.5]} 76... Ka4 {[%clk 0:00:09.7]} 77. Nd4 {[%clk 0:00:09.7]} 77... f2
{[%clk 0:00:09.4]} 78. Qc4+ {[%clk 0:00:10.3]} 78... Ka3 {[%clk 0:00:10.3]} 79.
Qb3# {[%clk 0:00:10.9]} 1-0

[Event "*** SCC Grand Prix: Titled Tuesday Blitz"]
[Site "Chess.com"]
[Date "2020.06.23"]
[Round "4"]
[White "PlayChessSimple"]
[Black "alexrustemov"]
[Result "1-0"]
[WhiteElo "2538"]
[BlackElo "2731"]
[TimeControl "180+1"]
[EndTime "10:41:07 PDT"]
[Termination "PlayChessSimple won by checkmate"]

1. e4 {[%clk 0:03:00.9]} 1... e6 {[%clk 0:02:59.5]} 2. d4 {[%clk 0:03:00.6]}
2... d5 {[%clk 0:03:00.4]} 3. e5 {[%clk 0:03:01.2]} 3... c5 {[%clk 0:03:00.1]}
4. c3 {[%clk 0:03:01.6]} 4... Qb6 {[%clk 0:03:00.6]} 5. Nf3 {[%clk 0:03:01.7]}
5... Bd7 {[%clk 0:03:00.7]} 6. Bd3 {[%clk 0:02:55.7]} 6... cxd4 {[%clk
0:02:59.6]} 7. Nxd4 {[%clk 0:02:55.3]} 7... Bc5 {[%clk 0:02:56.4]} 8. O-O {[%clk
0:02:51.1]} 8... Bxd4 {[%clk 0:02:55.3]} 9. cxd4 {[%clk 0:02:51.3]} 9... Qxd4
{[%clk 0:02:55.5]} 10. Nc3 {[%clk 0:02:50.9]} 10... Qxe5 {[%clk 0:02:37.8]} 11.
Re1 {[%clk 0:02:50]} 11... Qd6 {[%clk 0:02:29.3]} 12. Qg4 {[%clk 0:02:46.1]}
12... Kf8 {[%clk 0:02:06.5]} 13. Bf4 {[%clk 0:02:18.7]} 13... Qb6 {[%clk
0:01:52.8]} 14. Qg3 {[%clk 0:02:07.3]} 14... Nc6 {[%clk 0:01:37.1]} 15. Bd6+
{[%clk 0:01:49.6]} 15... Nce7 {[%clk 0:01:36.8]} 16. Rac1 {[%clk 0:01:20.4]}
16... Rc8 {[%clk 0:01:31.9]} 17. b4 {[%clk 0:00:53.9]} 17... h5 {[%clk
0:01:19.3]} 18. Bc5 {[%clk 0:00:53.4]} 18... Qd8 {[%clk 0:01:15.4]} 19. Nb5
{[%clk 0:00:41.1]} 19... Bxb5 {[%clk 0:01:07]} 20. Bxb5 {[%clk 0:00:42]} 20...
h4 {[%clk 0:00:49.4]} 21. Qe5 {[%clk 0:00:37]} 21... b6 {[%clk 0:00:36.7]} 22.
Bd4 {[%clk 0:00:32.5]} 22... Nf6 {[%clk 0:00:34.7]} 23. Ba6 {[%clk 0:00:28.1]}
23... Rxc1 {[%clk 0:00:33.8]} 24. Rxc1 {[%clk 0:00:27.5]} 24... Rh5 {[%clk
0:00:27]} 25. Qe2 {[%clk 0:00:25.6]} 25... Rh6 {[%clk 0:00:17.3]} 26. Be5 {[%clk
0:00:24.1]} 26... Kg8 {[%clk 0:00:16.3]} 27. Bc7 {[%clk 0:00:23]} 27... Qd7
{[%clk 0:00:16.2]} 28. Bb5 {[%clk 0:00:23.2]} 28... Qc8 {[%clk 0:00:16.1]} 29.
Bf4 {[%clk 0:00:23.2]} 29... Qd8 {[%clk 0:00:12.5]} 30. Bxh6 {[%clk 0:00:22.8]}
30... gxh6 {[%clk 0:00:13.4]} 31. Qe5 {[%clk 0:00:22.8]} 31... Kg7 {[%clk
0:00:13.5]} 32. Qc7 {[%clk 0:00:21.4]} 32... Qf8 {[%clk 0:00:13.3]} 33. Qxa7
{[%clk 0:00:20]} 33... Nf5 {[%clk 0:00:12.5]} 34. Bd3 {[%clk 0:00:16.2]} 34...
Qxb4 {[%clk 0:00:11.8]} 35. Bxf5 {[%clk 0:00:15.4]} 35... exf5 {[%clk
0:00:12.7]} 36. Qc7 {[%clk 0:00:13.4]} 36... h3 {[%clk 0:00:12.5]} 37. Qg3+
{[%clk 0:00:11.6]} 37... Kh7 {[%clk 0:00:11.1]} 38. Qxh3 {[%clk 0:00:11.1]}
38... Kg6 {[%clk 0:00:11]} 39. Qg3+ {[%clk 0:00:10.6]} 39... Kh7 {[%clk
0:00:11]} 40. a3 {[%clk 0:00:10]} 40... Qe4 {[%clk 0:00:09.8]} 41. Qe3 {[%clk
0:00:08.8]} 41... d4 {[%clk 0:00:08.7]} 42. Qxe4 {[%clk 0:00:08.7]} 42... fxe4
{[%clk 0:00:09.6]} 43. Kf1 {[%clk 0:00:08.9]} 43... d3 {[%clk 0:00:09.7]} 44.
Rc6 {[%clk 0:00:08.3]} 44... Nd5 {[%clk 0:00:09.6]} 45. Rd6 {[%clk 0:00:08.3]}
45... Nf4 {[%clk 0:00:09.7]} 46. g3 {[%clk 0:00:07]} 46... Ne2 {[%clk
0:00:09.6]} 47. Rxb6 {[%clk 0:00:05.8]} 47... Nd4 {[%clk 0:00:09.7]} 48. Rb2
{[%clk 0:00:03.6]} 48... f5 {[%clk 0:00:06.5]} 49. a4 {[%clk 0:00:03.9]} 49...
f4 {[%clk 0:00:06.8]} 50. gxf4 {[%clk 0:00:03.4]} 50... Nc6 {[%clk 0:00:05.9]}
51. Ke1 {[%clk 0:00:02.7]} 51... Kg7 {[%clk 0:00:05.6]} 52. Kd2 {[%clk
0:00:03.2]} 52... Na5 {[%clk 0:00:05.5]} 53. Rb5 {[%clk 0:00:02.2]} 53... Nc4+
{[%clk 0:00:05.5]} 54. Kd1 {[%clk 0:00:02.6]} 54... Kg6 {[%clk 0:00:04.9]} 55.
a5 {[%clk 0:00:01.9]} 55... Na3 {[%clk 0:00:02.1]} 56. Rc5 {[%clk 0:00:01.8]}
56... Kf6 {[%clk 0:00:01.1]} 57. a6 {[%clk 0:00:02.1]} 57... Nc2 {[%clk
0:00:01.5]} 58. a7 {[%clk 0:00:02.4]} 58... e3 {[%clk 0:00:02.3]} 59. fxe3
{[%clk 0:00:02]} 59... Nxe3+ {[%clk 0:00:02]} 60. Kd2 {[%clk 0:00:02.4]} 60...
Nf1+ {[%clk 0:00:02.7]} 61. Kxd3 {[%clk 0:00:02.6]} 61... Nxh2 {[%clk
0:00:03.6]} 62. a8=Q {[%clk 0:00:02.4]} 62... Ng4 {[%clk 0:00:02.3]} 63. Qc6+
{[%clk 0:00:02.6]} 63... Kg7 {[%clk 0:00:01.7]} 64. Rb5 {[%clk 0:00:02.8]} 64...
Nf6 {[%clk 0:00:01.4]} 65. Rb7+ {[%clk 0:00:02.9]} 65... Kg6 {[%clk 0:00:02.3]}
66. Qg2+ {[%clk 0:00:02.1]} 66... Kf5 {[%clk 0:00:02.1]} 67. Rb5+ {[%clk
0:00:02.6]} 67... Ke6 {[%clk 0:00:02.4]} 68. Qh3+ {[%clk 0:00:03]} 68... Kf7
{[%clk 0:00:03.3]} 69. Qf5 {[%clk 0:00:03.2]} 69... Kg7 {[%clk 0:00:02.7]} 70.
Rb7+ {[%clk 0:00:03.3]} 70... Kg8 {[%clk 0:00:02.5]} 71. Qxf6 {[%clk 0:00:03.5]}
71... h5 {[%clk 0:00:03.4]} 72. Qg7# {[%clk 0:00:03.8]} 1-0

[Event "*** SCC Grand Prix: Titled Tuesday Blitz"]
[Site "Chess.com"]
[Date "2020.06.23"]
[Round "4"]
[White "1f3_2g41-0"]
[Black "aNaartjieZA"]
[Result "0-1"]
[WhiteElo "2242"]
[BlackElo "2576"]
[TimeControl "180+1"]
[EndTime "10:41:07 PDT"]
[Termination "aNaartjieZA won by resignation"]

1. e4 {[%clk 0:03:00.9]} 1... e6 {[%clk 0:02:57.8]} 2. d4 {[%clk 0:03:00.5]}
2... d5 {[%clk 0:02:55.9]} 3. Nc3 {[%clk 0:03:00.5]} 3... Bb4 {[%clk 0:02:54.7]}
4. exd5 {[%clk 0:02:59.5]} 4... exd5 {[%clk 0:02:54.5]} 5. Bd3 {[%clk 0:03:00]}
5... Nc6 {[%clk 0:02:54.6]} 6. Nf3 {[%clk 0:02:52.5]} 6... Bg4 {[%clk
0:02:53.5]} 7. O-O {[%clk 0:02:18.7]} 7... Nge7 {[%clk 0:02:52.8]} 8. Be3 {[%clk
0:02:16.1]} 8... a6 {[%clk 0:02:50.1]} 9. a3 {[%clk 0:02:15.4]} 9... Bd6 {[%clk
0:02:50]} 10. h3 {[%clk 0:02:13.6]} 10... Bh5 {[%clk 0:02:48.3]} 11. Re1 {[%clk
0:02:13.5]} 11... Qd7 {[%clk 0:02:45.7]} 12. b4 {[%clk 0:01:43.3]} 12... Bg6
{[%clk 0:02:09.3]} 13. b5 {[%clk 0:00:52.1]} 13... axb5 {[%clk 0:02:07.1]} 14.
Bxb5 {[%clk 0:00:53]} 14... O-O {[%clk 0:02:03.7]} 15. Ne5 {[%clk 0:00:47]}
15... Bxe5 {[%clk 0:02:03]} 16. dxe5 {[%clk 0:00:47.9]} 16... Qe6 {[%clk
0:01:52.1]} 17. Bf4 {[%clk 0:00:46.9]} 17... Rad8 {[%clk 0:01:42.4]} 18. Ne2
{[%clk 0:00:45.2]} 18... d4 {[%clk 0:01:39]} 19. Bh2 {[%clk 0:00:34.9]} 19...
Qd5 {[%clk 0:01:04.2]} 20. Ba4 {[%clk 0:00:24.4]} 20... Qc5 {[%clk 0:00:55.3]}
21. Nf4 {[%clk 0:00:19.9]} 21... Nxe5 {[%clk 0:00:47.4]} 22. Rxe5 {[%clk
0:00:18.7]} 22... Qxe5 {[%clk 0:00:41.8]} 23. Nxg6 {[%clk 0:00:18.9]} 23... Qf6
{[%clk 0:00:41.7]} 24. Nxf8 {[%clk 0:00:17.9]} 24... Kxf8 {[%clk 0:00:40.3]} 25.
Bb3 {[%clk 0:00:17.4]} 25... c6 {[%clk 0:00:39.7]} 26. Qd3 {[%clk 0:00:16.4]}
26... Nd5 {[%clk 0:00:38.6]} 27. Bxd5 {[%clk 0:00:15.9]} 27... Rxd5 {[%clk
0:00:38.1]} 28. Re1 {[%clk 0:00:16.5]} 28... g6 {[%clk 0:00:38.1]} 29. a4 {[%clk
0:00:16.5]} 29... Kg7 {[%clk 0:00:38]} 30. Qe4 {[%clk 0:00:15.9]} 30... Qf5
{[%clk 0:00:29.8]} 31. Be5+ {[%clk 0:00:15.2]} 31... f6 {[%clk 0:00:29.3]} 32.
Qxf5 {[%clk 0:00:14.8]} 32... gxf5 {[%clk 0:00:28.5]} 33. Bf4 {[%clk 0:00:14.7]}
33... b5 {[%clk 0:00:26.9]} 34. Re7+ {[%clk 0:00:12]} 34... Kg6 {[%clk
0:00:26.8]} 35. axb5 {[%clk 0:00:10.9]} 35... Rxb5 {[%clk 0:00:26.7]} 36. h4
{[%clk 0:00:11.2]} 36... Rc5 {[%clk 0:00:22.4]} 37. Re2 {[%clk 0:00:06.3]} 37...
Rc4 {[%clk 0:00:20.6]} 38. Rd2 {[%clk 0:00:06.1]} 38... d3 {[%clk 0:00:20.4]}
39. cxd3 {[%clk 0:00:02]} 39... Rxf4 {[%clk 0:00:20.3]} 40. g3 {[%clk
0:00:02.9]} 40... Rd4 {[%clk 0:00:20.3]} 41. Kg2 {[%clk 0:00:03.8]} 41... f4
{[%clk 0:00:20.5]} 42. Kf3 {[%clk 0:00:04.3]} 42... fxg3 {[%clk 0:00:20.1]} 43.
fxg3 {[%clk 0:00:05.2]} 43... h5 {[%clk 0:00:19.3]} 44. Ke3 {[%clk 0:00:05.8]}
44... c5 {[%clk 0:00:19.6]} 45. Rc2 {[%clk 0:00:05]} 45... Rd5 {[%clk
0:00:19.9]} 46. Ke4 {[%clk 0:00:05.5]} 46... Re5+ {[%clk 0:00:20.2]} 47. Kf4
{[%clk 0:00:05.9]} 47... Kf7 {[%clk 0:00:20.5]} 48. Rc4 {[%clk 0:00:05.7]} 48...
Ke6 {[%clk 0:00:20.7]} 49. Re4 {[%clk 0:00:05.9]} 49... Rxe4+ {[%clk 0:00:20.9]}
50. Kxe4 {[%clk 0:00:06.8]} 50... f5+ {[%clk 0:00:19.1]} 51. Kf4 {[%clk
0:00:07.2]} 51... Kf6 {[%clk 0:00:15.5]} 52. Kf3 {[%clk 0:00:07.3]} 52... Ke5
{[%clk 0:00:15.8]} 53. Ke3 {[%clk 0:00:07.8]} 53... Kd5 {[%clk 0:00:15.7]} 54.
Kf4 {[%clk 0:00:06.5]} 54... Kd4 {[%clk 0:00:16]} 55. Kxf5 {[%clk 0:00:06.8]}
55... Kxd3 {[%clk 0:00:16.4]} 56. Kg5 {[%clk 0:00:07.5]} 56... c4 {[%clk
0:00:16.3]} 57. Kxh5 {[%clk 0:00:08.2]} 57... c3 {[%clk 0:00:16.7]} 58. Kg6
{[%clk 0:00:08.9]} 58... c2 {[%clk 0:00:17]} 59. h5 {[%clk 0:00:09.7]} 59...
c1=Q {[%clk 0:00:17.3]} 60. h6 {[%clk 0:00:10.2]} 60... Qc8 {[%clk 0:00:17.2]}
61. Kg7 {[%clk 0:00:10.3]} 61... Qd7+ {[%clk 0:00:16.7]} 62. Kg8 {[%clk
0:00:10.4]} 62... Qe8+ {[%clk 0:00:14.5]} 63. Kg7 {[%clk 0:00:10.5]} 63... Qe7+
{[%clk 0:00:14]} 64. Kg8 {[%clk 0:00:10.7]} 64... Qg5+ {[%clk 0:00:13.9]} 65.
Kh7 {[%clk 0:00:10.7]} 65... Qxg3 {[%clk 0:00:13.8]} 66. Kh8 {[%clk 0:00:10.8]}
66... Qb8+ {[%clk 0:00:11.2]} 67. Kg7 {[%clk 0:00:10.8]} 67... Qc7+ {[%clk
0:00:11.2]} 68. Kh8 {[%clk 0:00:10.8]} 68... Qd8+ {[%clk 0:00:11.2]} 69. Kg7
{[%clk 0:00:10.6]} 69... Qg5+ {[%clk 0:00:11.1]} 70. Kh7 {[%clk 0:00:10.6]}
70... Ke4 {[%clk 0:00:11]} 71. Kh8 {[%clk 0:00:10.1]} 71... Qxh6+ {[%clk
0:00:11.1]} 0-1

[Event "*** SCC Grand Prix: Titled Tuesday Blitz"]
[Site "Chess.com"]
[Date "2020.06.23"]
[Round "4"]
[White "tsvet2005"]
[Black "JozefKneht"]
[Result "0-1"]
[WhiteElo "2630"]
[BlackElo "2456"]
[TimeControl "180+1"]
[EndTime "10:41:07 PDT"]
[Termination "JozefKneht won by resignation"]

1. d4 {[%clk 0:03:00.9]} 1... d5 {[%clk 0:02:59.3]} 2. c4 {[%clk 0:03:01.5]}
2... e6 {[%clk 0:02:59.5]} 3. Nc3 {[%clk 0:03:01.7]} 3... Nf6 {[%clk 0:03:00.1]}
4. cxd5 {[%clk 0:03:02]} 4... exd5 {[%clk 0:02:59.5]} 5. Bg5 {[%clk 0:03:02.1]}
5... Be7 {[%clk 0:03:00]} 6. e3 {[%clk 0:03:01.9]} 6... O-O {[%clk 0:03:00.6]}
7. Bd3 {[%clk 0:03:02]} 7... c6 {[%clk 0:02:57.4]} 8. Qc2 {[%clk 0:03:02.1]}
8... Nbd7 {[%clk 0:02:57]} 9. Nge2 {[%clk 0:03:02.3]} 9... Re8 {[%clk
0:02:55.5]} 10. O-O {[%clk 0:03:02.4]} 10... Nf8 {[%clk 0:02:55.1]} 11. Rad1
{[%clk 0:03:01.5]} 11... Be6 {[%clk 0:02:54.7]} 12. f3 {[%clk 0:03:00.2]} 12...
Rc8 {[%clk 0:02:53.9]} 13. e4 {[%clk 0:02:57.6]} 13... dxe4 {[%clk 0:02:53]} 14.
fxe4 {[%clk 0:02:58.5]} 14... Ng4 {[%clk 0:02:53.2]} 15. Bxe7 {[%clk 0:02:58.1]}
15... Qxe7 {[%clk 0:02:52.6]} 16. Qc1 {[%clk 0:02:58.6]} 16... c5 {[%clk
0:02:52.5]} 17. d5 {[%clk 0:02:58.4]} 17... Bd7 {[%clk 0:02:52.3]} 18. Kh1
{[%clk 0:02:41.9]} 18... Ng6 {[%clk 0:02:42]} 19. b3 {[%clk 0:02:31]} 19... Qh4
{[%clk 0:02:39.9]} 20. h3 {[%clk 0:02:29]} 20... Nf2+ {[%clk 0:02:39]} 21. Rxf2
{[%clk 0:02:23.5]} 21... Qxf2 {[%clk 0:02:39.5]} 22. Rf1 {[%clk 0:02:14]} 22...
Qh4 {[%clk 0:02:39.8]} 23. Qe3 {[%clk 0:02:13]} 23... a6 {[%clk 0:02:27.5]} 24.
a4 {[%clk 0:02:05.7]} 24... Qe7 {[%clk 0:02:08.1]} 25. Ng3 {[%clk 0:02:03.1]}
25... Ne5 {[%clk 0:02:03.3]} 26. Be2 {[%clk 0:01:56.8]} 26... c4 {[%clk
0:01:45.9]} 27. bxc4 {[%clk 0:01:57.7]} 27... Nxc4 {[%clk 0:01:45.6]} 28. Qf4
{[%clk 0:01:48.3]} 28... Ne5 {[%clk 0:01:33.5]} 29. Nd1 {[%clk 0:01:45.3]} 29...
b5 {[%clk 0:01:23.3]} 30. axb5 {[%clk 0:01:42.5]} 30... axb5 {[%clk 0:01:24.2]}
31. Ne3 {[%clk 0:01:42.6]} 31... g6 {[%clk 0:01:23.6]} 32. Qh6 {[%clk
0:01:38.9]} 32... f6 {[%clk 0:01:17.3]} 33. Qh4 {[%clk 0:01:33.1]} 33... Rf8
{[%clk 0:01:16.7]} 34. Qf4 {[%clk 0:01:27.7]} 34... b4 {[%clk 0:01:13.9]} 35. d6
{[%clk 0:01:23.2]} 35... Qxd6 {[%clk 0:01:11.6]} 36. Nd5 {[%clk 0:01:23.7]}
36... Kg7 {[%clk 0:01:09.7]} 37. h4 {[%clk 0:01:18.5]} 37... Bc6 {[%clk
0:01:03.4]} 38. Ne3 {[%clk 0:01:16.4]} 38... Kh8 {[%clk 0:00:48.5]} 39. h5
{[%clk 0:01:16]} 39... b3 {[%clk 0:00:45.7]} 40. hxg6 {[%clk 0:01:15.5]} 40...
hxg6 {[%clk 0:00:40.7]} 41. Nc4 {[%clk 0:01:09.8]} 41... Qe7 {[%clk 0:00:28.5]}
42. Ne3 {[%clk 0:01:02]} 42... Rf7 {[%clk 0:00:24.5]} 43. Kg1 {[%clk 0:01:00.2]}
43... Kg8 {[%clk 0:00:24.2]} 44. Kf2 {[%clk 0:00:58.5]} 44... Bb7 {[%clk
0:00:18.3]} 45. Rh1 {[%clk 0:00:57.6]} 45... Rc3 {[%clk 0:00:16.1]} 46. Ngf5
{[%clk 0:00:46.5]} 46... gxf5 {[%clk 0:00:15.8]} 47. Nxf5 {[%clk 0:00:47.4]}
47... Qc5+ {[%clk 0:00:15.5]} 48. Ne3 {[%clk 0:00:36.1]} 48... Rg7 {[%clk
0:00:13.2]} 49. Qh6 {[%clk 0:00:27.7]} 49... Rxe3 {[%clk 0:00:13]} 50. Qh8+
{[%clk 0:00:25.9]} 50... Kf7 {[%clk 0:00:13.3]} 51. Bh5+ {[%clk 0:00:26.8]}
51... Ng6 {[%clk 0:00:13.3]} 52. Bxg6+ {[%clk 0:00:26.4]} 52... Rxg6 {[%clk
0:00:13.1]} 53. Rh7+ {[%clk 0:00:25.6]} 53... Ke6 {[%clk 0:00:13.4]} 54. Qe8+
{[%clk 0:00:25.5]} 54... Kd6 {[%clk 0:00:13.8]} 55. Qe7+ {[%clk 0:00:20.8]}
55... Kc6 {[%clk 0:00:13.7]} 56. Qxb7+ {[%clk 0:00:21.3]} 56... Kd6 {[%clk
0:00:13.6]} 57. Qd7+ {[%clk 0:00:09]} 57... Ke5 {[%clk 0:00:13.1]} 58. Qf5+
{[%clk 0:00:07.5]} 58... Kd4 {[%clk 0:00:13.4]} 59. Rd7+ {[%clk 0:00:07.5]}
59... Kc4 {[%clk 0:00:12.2]} 60. Qxc5+ {[%clk 0:00:07.5]} 60... Kxc5 {[%clk
0:00:12.3]} 61. Kxe3 {[%clk 0:00:08.4]} 61... Rxg2 {[%clk 0:00:12.4]} 62. Rb7
{[%clk 0:00:07.5]} 62... b2 {[%clk 0:00:12.8]} 63. Kf4 {[%clk 0:00:07.2]} 63...
Kc4 {[%clk 0:00:13.1]} 64. Kf5 {[%clk 0:00:07]} 64... Rf2+ {[%clk 0:00:13.7]}
65. Ke6 {[%clk 0:00:07]} 65... Kc3 {[%clk 0:00:14.3]} 66. Rc7+ {[%clk
0:00:04.6]} 66... Kd2 {[%clk 0:00:14.2]} 67. Rd7+ {[%clk 0:00:04.3]} 67... Kc1
{[%clk 0:00:14.6]} 68. Rc7+ {[%clk 0:00:04.2]} 68... Rc2 {[%clk 0:00:15.1]} 69.
Rb7 {[%clk 0:00:03.5]} 69... Rc6+ {[%clk 0:00:15]} 70. Kd5 {[%clk 0:00:03.1]}
70... Ra6 {[%clk 0:00:15.3]} 71. Rc7+ {[%clk 0:00:02.2]} 71... Kb1 {[%clk
0:00:15.4]} 72. Rb7 {[%clk 0:00:03.1]} 72... Ka1 {[%clk 0:00:15.6]} 73. e5
{[%clk 0:00:02]} 73... fxe5 {[%clk 0:00:15.1]} 74. Rxb2 {[%clk 0:00:02.9]} 0-1